Cogmind - Beta 14 @@@ ROGUE MODE // 2025.05.02 @ 01:05:03 Player: GiggleBox Result: Destroyed by P-80 Master with Gamma Rifle Performance ------------- Evolutions (9) 4500 Regions Visited (17) 3400 Robots Destroyed (20) 100 Value Destroyed (361) 361 Prototype IDs (28) 560 Alien Tech Used (0) 0 Bonus (300) 300 TOTAL SCORE: 9221 Bonus ------- Aligned with FarCom 300 Cogmind --------- Core Integrity 0/1600 Matter 290/300 Energy 99/100 System Corruption 7% Temperature Cool (0) Movement Core (50) Location -1/Access Parts ------- > --- POWER (2) -------- (None) > --- PROPULSION (8) --- (None) > --- UTILITY (11) ----- (None) > --- WEAPON (4) ------- (None) > --- INVENTORY (5) ---- Light Quantum Reactor Improved Antigrav System Peak State ------------ > --- POWER ------------ Micro Antimatter Reactor Compact Particle Reactor > --- PROPULSION ------- VTOL Module Surge Thruster Improved Cesium-ion Thruster Nuclear Pulse Array Impulse Thruster Array > --- UTILITY ---------- Advanced Power Amplifier Medium Storage Unit Improved Trap Scanner Advanced Transmission Jammer Improved Light Armor Plating Hacking Suite Advanced Hacking Suite System Shield System Shield Trap Reconfigurator > --- WEAPON ----------- Advanced Datajack Chainsword > --- INVENTORY -------- Fission Core Light Fission Core Improved Flight Unit Improved Flight Unit Improved Cooling System Advanced ECM Suite Heavy Missile Launcher Chainsword [Rating: 116] Favorites ----------- Power Light Nuclear Core Engine Light Ion Engine Power Core Light Nuclear Core Reactor Compact Particle Reactor Propulsion Improved Flight Unit Treads Light Treads Hover Unit Antigrav Array Flight Unit Improved Flight Unit Utility Medium Storage Unit Device Transmission Jammer Storage Medium Storage Unit Hackware Hacking Suite Protection Improved Light Armor Plating Weapon Chainsword Ballistic Gun Assault Rifle Launcher Heavy Missile Launcher Slashing Weapon Chainsword Special Melee Weapon Advanced Datajack Build | -11 -10 -10 -9 -9 -9 -8 -8 -7 -7 -7 -6 -5 -4 -4 -3 -2 -1 ------- Run | Yrd Mat Min Mat Min Exi Min Mat Fac Low Low Fac Fac Fac Ext Res Res Acc Slots Evolved 18 | . . . 2 . . . 2 2 . . 2 2 2 . 2 2 2 Power 1 | . . . . . . . . . . . . . 1 . . . . Propulsion 6 | . . . 2 . . . 1 1 . . . . . . 1 1 . Utility 9 | . . . . . . . 1 1 . . 2 2 1 . 1 1 . Weapon 2 | . . . . . . . . . . . . . . . . . 2 Parts Attached 93 | 7 8 2 8 . . . 5 5 . . 11 9 5 1 11 7 14 Power 14 | 1 2 . 1 . . . 1 . . . 1 2 . . 2 2 2 Engine 4 | 1 2 . 1 . . . . . . . . . . . . . . Core 5 | . . . . . . . 1 . . . 1 2 . . . . 1 Reactor 5 | . . . . . . . . . . . . . . . 2 2 1 Propulsion 33 | 2 5 1 4 . . . 1 2 . . 4 2 . . 4 2 6 Treads 2 | 2 . . . . . . . . . . . . . . . . . Leg . | . . . . . . . . . . . . . . . . . . Wheel . | . . . . . . . . . . . . . . . . . . Hover 4 | . . . . . . . . . . . . . . . . . 4 Flight 27 | . 5 1 4 . . . 1 2 . . 4 2 . . 4 2 2 Utility 32 | 2 . . 3 . . . 3 2 . . 3 4 5 1 4 2 3 Device 20 | 1 . . 1 . . . 2 1 . . 2 4 4 . 2 1 2 Storage 4 | 1 . . 1 . . . . . . . . . . 1 . . 1 Processor . | . . . . . . . . . . . . . . . . . . Hackware 5 | . . . 1 . . . . 1 . . . . 1 . 1 1 . Protection 3 | . . . . . . . 1 . . . 1 . . . 1 . . Artifact . | . . . . . . . . . . . . . . . . . . Weapon 14 | 2 1 1 . . . . . 1 . . 3 1 . . 1 1 3 Energy Gun . | . . . . . . . . . . . . . . . . . . Energy Cannon . | . . . . . . . . . . . . . . . . . . Ballistic Gun 3 | 2 1 . . . . . . . . . . . . . . . . Ballistic Cannon . | . . . . . . . . . . . . . . . . . . Launcher 1 | . . . . . . . . . . . . . . . . . 1 Special Weapon . | . . . . . . . . . . . . . . . . . . Impact Weapon . | . . . . . . . . . . . . . . . . . . Slashing Weapon 8 | . . 1 . . . . . 1 . . 2 1 . . . 1 2 Piercing Weapon . | . . . . . . . . . . . . . . . . . . Special Melee Weapon 2 | . . . . . . . . . . . 1 . . . 1 . . Unidentified Prototypes 4 | . . . 1 . . . . . . . 2 . . . 1 . . Parts Lost 24 | . 2 1 2 . . . . . . . . . . . 6 3 10 Power 3 | . . . . . . . . . . . . . . . . 1 2 Propulsion 14 | . 1 1 1 . . . . . . . . . . . 5 2 4 Utility 4 | . 1 . 1 . . . . . . . . . . . 1 . 1 Weapon 3 | . . . . . . . . . . . . . . . . . 3 Highest Loss Streak 6 | . 2 1 1 . . . . . . . . . . . 6 3 5 To Critical Strikes . | . . . . . . . . . . . . . . . . . . Average Slot Usage (%) 76 | . 78 57 70 88 88 88 87 99 100 100 91 76 84 84 82 51 28 Engine 1 | . 4 . 6 11 11 11 . . . . . . . . . . . Core 3 | . . . . . . . 9 7 7 7 6 5 5 5 . 1 2 Treads 1 | . 9 . . . . . . . . . . . . . . . . Hover 1 | . . . . . . . . . . . . . . . . . 11 Flight 29 | . 18 28 36 44 44 44 42 46 46 46 39 30 26 26 24 12 . Device 9 | . 11 . 4 . . . 9 7 7 7 10 12 21 21 19 13 2 Storage 7 | . 14 14 11 11 11 11 9 7 7 7 6 5 5 5 4 3 2 Hackware 9 | . . . 1 11 11 11 9 15 15 15 13 11 15 15 17 15 . Protection 2 | . . . . . . . . . . . 6 5 5 5 3 . . Ballistic Gun 2 | . 18 2 . . . . . . . . . . . . . . . Slashing Weapon 6 | . . 11 11 11 11 11 9 14 15 15 6 2 5 5 4 1 4 Peak Build Rating 116 | 7 7 8 21 21 22 22 36 47 42 42 50 69 81 81 116 105 96 Average Rating 44 | 4 5 6 15 21 21 22 34 43 42 42 48 50 78 81 101 72 67 On Entrance 34 | . 7 4 7 21 21 22 22 36 42 42 42 44 69 81 81 69 2 Naked Turns 95 | . . . . . . . . . . . . . . . . 44 51 Heaviest Build 82 | 15 15 8 18 16 16 16 19 22 22 22 27 30 31 31 41 33 82 Greatest Support 104 | 40 40 8 20 20 20 20 24 24 23 23 26 32 32 33 42 36 104 Greatest Overweight (x) 3 | . 3 . . . . . . . . . 1 . . . 1 1 1 Average Overweight (x) . | . . . . . . . . . . . . . . . . . . Largest Inventory Capacity 20 | 8 8 8 10 10 10 10 10 10 10 10 10 10 10 10 10 10 20 Average Capacity 9 | 6 8 8 8 10 10 10 10 10 10 10 10 10 10 10 10 9 14 Most Carried 10 | 1 8 8 8 7 7 7 10 10 10 10 10 10 8 9 10 9 5 Average Carried 7 | . 5 7 7 6 6 7 9 9 10 10 8 8 7 8 8 7 1 Final Capacity 10 | 8 8 8 10 10 10 10 10 10 10 10 10 10 10 10 10 5 5 Final Carried 10 | 1 7 7 7 6 7 7 10 10 10 10 10 7 8 8 9 5 2 Class Distribution -------------------- 40% | Hacker-Sprinter 33% | Mutant 12% | Sprinter 12% | Hacker-Mutant Dominant Class ---------------- Mutant | -10/Materials Mutant | -10/Mines Sprinter | -9/Materials Sprinter | -9/Mines Sprinter | -9/Exiles Sprinter | -8/Mines Sprinter | -8/Materials Hacker-Sprinter | -7/Factory Hacker-Sprinter | -7/Lower Caves Hacker-Sprinter | -7/Lower Caves Hacker-Mutant | -6/Factory Hacker-Sprinter | -5/Factory Hacker-Sprinter | -4/Factory Hacker-Sprinter | -4/Extension Hacker-Sprinter | -3/Research Hacker-Sprinter | -2/Research Mutant | -1/Access Resources | -11 -10 -10 -9 -9 -9 -8 -8 -7 -7 -7 -6 -5 -4 -4 -3 -2 -1 ----------- Run | Yrd Mat Min Mat Min Exi Min Mat Fac Low Low Fac Fac Fac Ext Res Res Acc Matter Collected 1179 | 283 65 124 52 . . . 58 . 38 22 . . . 260 55 85 137 Remotely . | . . . . . . . . . . . . . . . . . . Salvage Created 1140 | 81 160 54 99 . . . 20 . . 154 112 . . 354 . . 106 Parts 53 | 5 15 2 8 . . . 1 . . 5 3 . . 8 . . 6 Haulers Intercepted 3 | . . . 1 . . . . . . . 1 . . 1 . . . Recyclers Shooed 1 | . . 1 . . . . . . . . . . . . . . . Parts Field Recycled . | . . . . . . . . . . . . . . . . . . Retrieved Matter . | . . . . . . . . . . . . . . . . . . Parts Self-Destructed . | . . . . . . . . . . . . . . . . . . Prevented . | . . . . . . . . . . . . . . . . . . Kills | -11 -10 -10 -9 -9 -9 -8 -8 -7 -7 -7 -6 -5 -4 -4 -3 -2 -1 ------- Run | Yrd Mat Min Mat Min Exi Min Mat Fac Low Low Fac Fac Fac Ext Res Res Acc Combat Hostiles Destroyed 7 | . 5 . 1 . . . . . . . . . . . . . 1 Melee 2 | . . . 1 . . . . . . . . . . . . . 1 Guns 5 | . 5 . . . . . . . . . . . . . . . . Classes Destroyed 9 | 2 3 . 1 . . . . . . 1 . . . . . . 2 Worker 1 | . . . . . . . . . . . . . . . . . 1 Tunneler 2 | 1 . . . . . . . . . . . . . . . . 1 Hauler 3 | . . . 1 . . . . . . . 1 . . 1 . . . Recycler 4 | 1 . 1 . . . . . . . . . . . 2 . . . Operator 3 | . 1 . 1 . . . 1 . . . . . . . . . . Swarmer 3 | . 3 . . . . . . . . . . . . . . . . Grunt 3 | . 2 . 1 . . . . . . . . . . . . . . Sentry 1 | . . . . . . . . . . . . . . . . . 1 Samaritan 2 | . . . . . . . . . . 2 . . . . . . . Best Kill Streak 5 | 2 5 1 2 . . . 1 . . . 1 . . 2 . . 1 Combat Bots Only 5 | . 5 . 1 . . . . . . . . . . . . . 1 Max Kills in Single Turn 2 | 2 2 1 1 . . . 1 . . 1 1 . . 1 . . 1 Gunslinging 1 | . 1 . . . . . . . . . . . . . . . . Exploded . | . . . . . . . . . . . . . . . . . . Melee 1 | . . . 1 . . . . . . . . . . . . . 1 Uniques/NPCs Destroyed . | . . . . . . . . . . . . . . . . . . Combat | -11 -10 -10 -9 -9 -9 -8 -8 -7 -7 -7 -6 -5 -4 -4 -3 -2 -1 -------- Run | Yrd Mat Min Mat Min Exi Min Mat Fac Low Low Fac Fac Fac Ext Res Res Acc Hostile Shots Fired 520 | . 52 5 99 6 . . 4 18 . . 12 4 10 9 57 41 203 Missed 252 | . 21 2 54 4 . . 3 8 . . 10 . 6 7 30 13 94 Damage Taken 5595 | . 310 37 445 17 . . 18 75 . . 31 93 59 69 732 738 2971 Core 2651 | . 77 . 176 8 . . . . . . . . 18 35 149 570 1618 Absorbed by Shields 34 | . . . 34 . . . . . . . . . . . . . . Ignored by Resistances 18 | . . . . . . . . . . . . . . . . . 18 Core Remaining (%) 86 | 100 . 69 . . . 54 100 . . 100 100 100 . 95 88 60 . Volleys Fired 24 | 3 18 . . . . . . . . . . . . . . . 3 Largest 2 | 2 2 . . . . . . . . . . . . . . . 1 Hottest 40 | 40 40 . . . . . . . . . . . . . . . 39 Shots Fired 38 | 5 30 . . . . . . . . . . . . . . . 3 Gun 35 | 5 30 . . . . . . . . . . . . . . . . Cannon . | . . . . . . . . . . . . . . . . . . Launcher 3 | . . . . . . . . . . . . . . . . . 3 Special . | . . . . . . . . . . . . . . . . . . Kinetic 35 | 5 30 . . . . . . . . . . . . . . . . Thermal . | . . . . . . . . . . . . . . . . . . Explosive 3 | . . . . . . . . . . . . . . . . . 3 Electromagnetic . | . . . . . . . . . . . . . . . . . . Robot Hit Streak 6 | 4 6 . . . . . . . . . . . . . . . . Robot Miss Streak 2 | . 2 . . . . . . . . . . . . . . . . Penetration Max . | . . . . . . . . . . . . . . . . . . Secondary Targets 3 | . 3 . . . . . . . . . . . . . . . . Max Gunslinging Chain 1 | . 1 . . . . . . . . . . . . . . . . Shots Hit Robots 55 | 4 18 2 9 . . . 2 . . 5 5 . . 4 3 . 3 Core Hits 28 | 2 8 1 2 . . . 1 . . 2 1 . . 1 . 1 9 Critical Kills . | . . . . . . . . . . . . . . . . . . Critical Parts Destroyed . | . . . . . . . . . . . . . . . . . . Critical Strikes 3 | . . . 1 . . . . . . . 1 . . 1 . . . Sever 3 | . . . 1 . . . . . . . 1 . . 1 . . . Melee Attacks 52 | . . 3 9 . . . 4 . . 5 5 2 1 4 9 1 9 Impact . | . . . . . . . . . . . . . . . . . . Slashing 48 | . . 3 9 . . . 4 . . 5 3 2 1 4 7 1 9 Piercing . | . . . . . . . . . . . . . . . . . . Sneak Attacks 13 | . . 1 1 . . . . . . 3 3 . . 3 2 . . Combat Hostiles 2 | . . . . . . . . . . . 2 . . . . . . Follow-up Attacks 1 | . . . . . . . . . . . . . . . . . 1 Damage Inflicted 2654 | 67 202 127 430 . . . 84 . . 380 158 . . 322 39 22 823 Guns 266 | 64 202 . . . . . . . . . . . . . . . . Cannons . | . . . . . . . . . . . . . . . . . . Explosions 691 | . . . . . . . . . . . . . . . . . 691 Melee 1638 | . . 127 430 . . . 84 . . 380 158 . . 322 39 . 98 Ramming 59 | 3 . . . . . . . . . . . . . . . 22 34 Kinetic 266 | 64 202 . . . . . . . . . . . . . . . . Thermal 86 | . . . . . . . . . . . . . . . . . 86 Explosive 605 | . . . . . . . . . . . . . . . . . 605 Electromagnetic . | . . . . . . . . . . . . . . . . . . Impact . | . . . . . . . . . . . . . . . . . . Slashing 1638 | . . 127 430 . . . 84 . . 380 158 . . 322 39 . 98 Piercing . | . . . . . . . . . . . . . . . . . . Highest Corruption 5 | . 2 2 . . . . . . . . . . . . 2 2 5 Average Corruption 2 | . 1 2 . . . . . . . . . . . . 1 1 2 Corruption Purged . | . . . . . . . . . . . . . . . . . . Corruption Blocked . | . . . . . . . . . . . . . . . . . . Effects 7 | . 2 3 . . . . . . . . . . . . . . 2 Message Errors 1 | . . 1 . . . . . . . . . . . . . . . Matter Fused 4 | . . 2 . . . . . . . . . . . . . . 2 Data Loss (minor) 1 | . 1 . . . . . . . . . . . . . . . . Misfires 1 | . 1 . . . . . . . . . . . . . . . . Overload Shots . | . . . . . . . . . . . . . . . . . . Overflow Damage 340 | . . . 36 . . . 1 . . 158 . . . 127 . . 18 Projectiles . | . . . . . . . . . . . . . . . . . . Explosions 18 | . . . . . . . . . . . . . . . . . 18 Melee 322 | . . . 36 . . . 1 . . 158 . . . 127 . . . Knockbacks . | . . . . . . . . . . . . . . . . . . Impact . | . . . . . . . . . . . . . . . . . . Kinetic . | . . . . . . . . . . . . . . . . . . Secondary . | . . . . . . . . . . . . . . . . . . Self-Inflicted Damage 134 | . . . . . . . . . . . . . . . . 9 125 Shots 1 | . . . . . . . . . . . . . . . . . 1 Rammed 16 | 1 . . . . . . . . . . . . . . . 9 6 Targets Rammed 16 | 1 . . . . . . . . . . . . . . . 9 6 Kicked . | . . . . . . . . . . . . . . . . . . Crushed . | . . . . . . . . . . . . . . . . . . Highest Temperature 22 | . . . 7 . . . 8 10 . . . . . 5 22 . 12 Average Temperature 3 | . . . 3 . . . 1 6 . . . . . 5 4 . 6 Received Heat Transfer 546 | . 93 21 107 . . . . 24 . . . 18 . 18 121 72 72 Siege Activations . | . . . . . . . . . . . . . . . . . . Robots Corrupted . | . . . . . . . . . . . . . . . . . . Combat Hostiles . | . . . . . . . . . . . . . . . . . . Parts Fried . | . . . . . . . . . . . . . . . . . . Impact Corruptions . | . . . . . . . . . . . . . . . . . . Robots Melted . | . . . . . . . . . . . . . . . . . . Combat Hostiles . | . . . . . . . . . . . . . . . . . . Parts Melted . | . . . . . . . . . . . . . . . . . . Heat Transferred 50 | . . . . . . . . . . . . . . . . . 50 Parts Sabotaged . | . . . . . . . . . . . . . . . . . . Parts Stolen . | . . . . . . . . . . . . . . . . . . Parts Stripped . | . . . . . . . . . . . . . . . . . . Power Chain Reactions . | . . . . . . . . . . . . . . . . . . Alert | -11 -10 -10 -9 -9 -9 -8 -8 -7 -7 -7 -6 -5 -4 -4 -3 -2 -1 ------- Run | Yrd Mat Min Mat Min Exi Min Mat Fac Low Low Fac Fac Fac Ext Res Res Acc Peak Influence 502 | 10 282 112 502 255 . . 188 192 . . 368 141 140 128 402 369 446 Initial 220 | . 6 61 43 195 . . . 85 . . 63 30 68 68 66 209 220 Average 164 | 2 145 104 248 198 . . 97 135 . . 189 69 86 81 187 250 248 Maximum Alert Level 2 | . 1 . 2 1 . . . . . . 1 . . . 2 1 2 Low Security (%) 65 | 100 65 100 44 91 . 100 100 100 . . 66 100 100 100 50 . 3 Level 1 32 | . 34 . 30 8 . . . . . . 33 . . . 49 100 88 Level 2 2 | . . . 25 . . . . . . . . . . . . . 7 Level 3 . | . . . . . . . . . . . . . . . . . . Level 4 . | . . . . . . . . . . . . . . . . . . Level 5 . | . . . . . . . . . . . . . . . . . . High Security . | . . . . . . . . . . . . . . . . . . Max Security . | . . . . . . . . . . . . . . . . . . Squads Dispatched 12 | . 3 1 . . . . 1 . . . 2 . . 1 1 . 3 Investigation 4 | . 1 1 . . . . . . . . . . . 1 . . 1 Extermination 1 | . . . . . . . . . . . . . . . . . 1 Reinforcement 7 | . 2 . . . . . 1 . . . 2 . . . 1 . 1 Assault . | . . . . . . . . . . . . . . . . . . Garrison . | . . . . . . . . . . . . . . . . . . Intercept . | . . . . . . . . . . . . . . . . . . Searches Triggered . | . . . . . . . . . . . . . . . . . . Construction Impeded . | . . . . . . . . . . . . . . . . . . Haulers Reinforced 1 | . . . . . . . . . . . 1 . . . . . . Active Scanning Responses . | . . . . . . . . . . . . . . . . . . Cargo Convoy Interrupts . | . . . . . . . . . . . . . . . . . . Stealth | -11 -10 -10 -9 -9 -9 -8 -8 -7 -7 -7 -6 -5 -4 -4 -3 -2 -1 --------- Run | Yrd Mat Min Mat Min Exi Min Mat Fac Low Low Fac Fac Fac Ext Res Res Acc Distress Signals 11 | . 2 . 1 . . . . . . . . 1 . . 2 2 3 Communications Jammed 36 | . . . . . . . . 11 . . 5 6 . . 14 . . Distress Signals 36 | . . . . . . . . 11 . . 5 6 . . 14 . . Times Spotted 165 | . 25 3 30 4 . . 7 4 . . 13 5 4 5 20 19 26 Peak Tracking Total 21 | . 9 2 11 4 . . 4 2 . . 10 2 2 7 12 21 16 Tactical Retreats 35 | . 4 1 7 1 . . 1 . . . 4 2 1 . 5 2 7 Traps | -11 -10 -10 -9 -9 -9 -8 -8 -7 -7 -7 -6 -5 -4 -4 -3 -2 -1 ------- Run | Yrd Mat Min Mat Min Exi Min Mat Fac Low Low Fac Fac Fac Ext Res Res Acc Traps Triggered 5 | . 2 . . . . . . . . . . . . 1 . . 2 Indirectly . | . . . . . . . . . . . . . . . . . . Trap Hack Attempts . | . . . . . . . . . . . . . . . . . . Triggered . | . . . . . . . . . . . . . . . . . . Disarmed . | . . . . . . . . . . . . . . . . . . Reprogrammed . | . . . . . . . . . . . . . . . . . . Reused 8 | . . 1 . . . . . 2 . . . . . . 5 . . Traps Reconfigurated 40 | . . . . . . . 2 10 . . . 3 2 4 16 3 . Traps Extracted . | . . . . . . . . . . . . . . . . . . Installed 4 | . . 4 . . . . . . . . . . . . . . . Triggered 8 | . . 1 . . . . . 2 . . . . . . 5 . . Machines | -11 -10 -10 -9 -9 -9 -8 -8 -7 -7 -7 -6 -5 -4 -4 -3 -2 -1 ---------- Run | Yrd Mat Min Mat Min Exi Min Mat Fac Low Low Fac Fac Fac Ext Res Res Acc Machines Disabled 3 | . 1 . . . . . 1 . . . . . . . . . 1 Max in Single Turn 1 | . 1 . . . . . 1 . . . . . . . . . 1 Garrison Access 2 | . . . . . . . . 1 . . 1 . . . . . . Energy Cycler 1 | . . . . . . . . . . . . . . . . . 1 Machines Repaired . | . . . . . . . . . . . . . . . . . . Machines Dismantled . | . . . . . . . . . . . . . . . . . . Machines Sabotaged . | . . . . . . . . . . . . . . . . . . Overloaded Fab Kills . | . . . . . . . . . . . . . . . . . . Hacking | -11 -10 -10 -9 -9 -9 -8 -8 -7 -7 -7 -6 -5 -4 -4 -3 -2 -1 --------- Run | Yrd Mat Min Mat Min Exi Min Mat Fac Low Low Fac Fac Fac Ext Res Res Acc Machines Accessed 58 | . 7 1 3 . 2 . 9 8 . . 10 3 4 2 7 2 . Terminals 43 | . 6 1 3 . . . 8 6 . . 7 . 3 2 6 1 . Fabricators 2 | . . . . . . . . 1 . . . 1 . . . . . Repair Stations 2 | . . . . . . . . . . . . 1 . . . 1 . Recycling Units 4 | . 1 . . . . . 1 . . . . 1 . . 1 . . Scanalyzers . | . . . . . . . . . . . . . . . . . . Garrison Access 5 | . . . . . . . . 1 . . 3 . 1 . . . . Total Hacks 187 | . 18 1 18 . 2 . 26 35 . . 25 4 14 4 28 12 . Successful 117 | . 11 1 13 . 2 . 18 17 . . 12 1 10 4 19 9 . Failed 70 | . 7 . 5 . . . 8 18 . . 13 3 4 . 9 3 . Catastrophic 6 | . 2 . . . . . . 1 . . 3 . . . . . . Database Lockouts . | . . . . . . . . . . . . . . . . . . Manual 137 | . 15 1 16 . 1 . 24 23 . . 16 1 10 2 22 6 . Terminals 164 | . 17 1 18 . . . 24 32 . . 21 . 13 4 26 8 . Fabricators 3 | . . . . . . . . 2 . . . 1 . . . . . Repair Stations 6 | . . . . . . . . . . . . 2 . . . 4 . Recycling Units 6 | . 1 . . . . . 2 . . . . 1 . . 2 . . Scanalyzers . | . . . . . . . . . . . . . . . . . . Garrison Access 6 | . . . . . . . . 1 . . 4 . 1 . . . . Terminal Hacks 40 | . 1 . 6 . 2 . 3 6 . . 3 . 4 3 8 4 . Record 3 | . . . . . 1 . . . . . . . . 1 . 1 . Robot Analysis 5 | . . . 2 . . . . 2 . . . . . . 1 . . Prototype ID Bank 1 | . . . . . . . 1 . . . . . . . . . . Open Door 2 | . . . . . . . . . . . . . 1 1 . . . Open DSF 3 | . . . . . . . . 1 . . 1 . . . 1 . . Level Access Points 5 | . . . . . . . . . . . 1 . 1 1 1 1 . Branch Access Points 5 | . 1 . 1 . . . 1 1 . . . . 1 . . . . Machine Index 1 | . . . . . . . . . . . . . . . 1 . . Terminal Index 4 | . . . 1 . . . . 1 . . . . . . 1 1 . Alert Level 3 | . . . 1 . . . . . . . . . 1 . 1 . . Locate Traps 3 | . . . . . . . 1 1 . . . . . . 1 . . Patrol Status 1 | . . . . . . . . . . . . . . . . 1 . Hauler Manifests 2 | . . . 1 . . . . . . . 1 . . . . . . Zone Layout 1 | . . . . . . . . . . . . . . . 1 . . Derelict Proto ID Bank 1 | . . . . . 1 . . . . . . . . . . . . Fabricator Hacks . | . . . . . . . . . . . . . . . . . . Repair Station Hacks 2 | . . . . . . . . . . . . . . . . 2 . Scan Component 1 | . . . . . . . . . . . . . . . . 1 . Refit 1 | . . . . . . . . . . . . . . . . 1 . Recycling Unit Hacks . | . . . . . . . . . . . . . . . . . . Scanalyzer . | . . . . . . . . . . . . . . . . . . Garrison Access Hacks 2 | . . . . . . . . 1 . . 1 . . . . . . Seal Access 2 | . . . . . . . . 1 . . 1 . . . . . . Unauthorized Hacks 73 | . 10 1 7 . . . 15 10 . . 8 1 6 1 11 3 . Terminals 67 | . 9 1 7 . . . 13 10 . . 8 . 6 1 9 3 . Track 1 | . . . . . . . 1 . . . . . . . . . . Assimilate 4 | . . . . . . . 1 1 . . 1 . 1 . . . . Botnet 19 | . 2 . 3 . . . 2 3 . . 2 . 2 . 4 1 . Operators 8 | . 1 . 1 . . . 2 1 . . . . 1 . 1 1 . Skim 33 | . 6 . 3 . . . 7 5 . . 5 . 2 . 4 1 . Sabotage 2 | . . 1 . . . . . . . . . . . 1 . . . Fabricators . | . . . . . . . . . . . . . . . . . . Repair Stations . | . . . . . . . . . . . . . . . . . . Recycling Units 6 | . 1 . . . . . 2 . . . . 1 . . 2 . . Monitor 2 | . . . . . . . 1 . . . . . . . 1 . . Recyclers 3 | . . . . . . . 1 . . . . 1 . . 1 . . Tunnel 1 | . 1 . . . . . . . . . . . . . . . . Scanalyzers . | . . . . . . . . . . . . . . . . . . Garrison Access . | . . . . . . . . . . . . . . . . . . Data Cores Recovered 1 | . . . 1 . . . . . . . . . . . . . . Used . | . . . . . . . . . . . . . . . . . . Hacking Detections 46 | . 6 . 3 . . . 8 7 . . 7 3 3 1 6 2 . Full Trace Events 1 | . . . . . . . 1 . . . . . . . . . . Feedback Events . | . . . . . . . . . . . . . . . . . . Feedback Blocked . | . . . . . . . . . . . . . . . . . . Robot Schematics Acquired . | . . . . . . . . . . . . . . . . . . Robots Built . | . . . . . . . . . . . . . . . . . . Authchips . | . . . . . . . . . . . . . . . . . . Time . | . . . . . . . . . . . . . . . . . . Total Robot Build Rating . | . . . . . . . . . . . . . . . . . . Part Schematics Acquired . | . . . . . . . . . . . . . . . . . . Parts Built . | . . . . . . . . . . . . . . . . . . Authchips . | . . . . . . . . . . . . . . . . . . Time . | . . . . . . . . . . . . . . . . . . Total Part Build Rating . | . . . . . . . . . . . . . . . . . . Parts Repaired . | . . . . . . . . . . . . . . . . . . Time . | . . . . . . . . . . . . . . . . . . Parts Recycled . | . . . . . . . . . . . . . . . . . . Recycled Matter . | . . . . . . . . . . . . . . . . . . Retrieved Matter . | . . . . . . . . . . . . . . . . . . Retrieved Components . | . . . . . . . . . . . . . . . . . . Parts Scanalyzed . | . . . . . . . . . . . . . . . . . . Part Schematics Acquired . | . . . . . . . . . . . . . . . . . . Parts Damaged . | . . . . . . . . . . . . . . . . . . Bothacking | -11 -10 -10 -9 -9 -9 -8 -8 -7 -7 -7 -6 -5 -4 -4 -3 -2 -1 ------------ Run | Yrd Mat Min Mat Min Exi Min Mat Fac Low Low Fac Fac Fac Ext Res Res Acc Used RIF Installer . | . . . . . . . . . . . . . . . . . . Robots Hacked 1 | . . . . . . . . . . . . . . . 1 . . Non-combat 1 | . . . . . . . . . . . . . . . 1 . . Combat . | . . . . . . . . . . . . . . . . . . Robot Hacks Applied 2 | . . . . . . . . . . . . . . . 2 . . parse_system 1 | . . . . . . . . . . . . . . . 1 . . find_recycling 1 | . . . . . . . . . . . . . . . 1 . . Relay Couplers Released . | . . . . . . . . . . . . . . . . . . Fabnet Peak Effective % . | . . . . . . . . . . . . . . . . . . Robots Rewired . | . . . . . . . . . . . . . . . . . . Allies Hacked . | . . . . . . . . . . . . . . . . . . Hacks Repelled . | . . . . . . . . . . . . . . . . . . Allies | -11 -10 -10 -9 -9 -9 -8 -8 -7 -7 -7 -6 -5 -4 -4 -3 -2 -1 -------- Run | Yrd Mat Min Mat Min Exi Min Mat Fac Low Low Fac Fac Fac Ext Res Res Acc Total Allies 4 | . . . . . . . . 1 . . . . 1 . . . 2 Largest Group 2 | . . . . . . . . 1 . . . . 1 1 . . 2 Highest-Rated Group 92 | . . . . . . . . 10 . . . . 26 26 . . 92 Highest-Rated Ally 46 | . . . . . . . . 10 . . . . 26 26 . . 46 Total Orders . | . . . . . . . . . . . . . . . . . . Ally Attacks 18 | . . . . . . . . . . . . . . . . . 18 Total Damage 351 | . . . . . . . . . . . . . . . . . 351 Kills . | . . . . . . . . . . . . . . . . . . Allies Corrupted . | . . . . . . . . . . . . . . . . . . Allies Melted . | . . . . . . . . . . . . . . . . . . Intel | -11 -10 -10 -9 -9 -9 -8 -8 -7 -7 -7 -6 -5 -4 -4 -3 -2 -1 ------- Run | Yrd Mat Min Mat Min Exi Min Mat Fac Low Low Fac Fac Fac Ext Res Res Acc Robot Analysis Total 5 | . . . 2 . . . . 2 . . . . . . 1 . . Derelict Logs Recovered 6 | . . 3 . 1 . . . . 1 1 . . . . . . . Drone Launches . | . . . . . . . . . . . . . . . . . . Drone Recoveries . | . . . . . . . . . . . . . . . . . . Exploration | -11 -10 -10 -9 -9 -9 -8 -8 -7 -7 -7 -6 -5 -4 -4 -3 -2 -1 ------------- Run | Yrd Mat Min Mat Min Exi Min Mat Fac Low Low Fac Fac Fac Ext Res Res Acc Turns Passed 4541 | 97 544 307 231 129 110 32 195 182 74 136 935 217 110 193 392 220 437 Spaces Moved 9036 | 52 532 773 539 408 350 103 601 588 275 393 1027 534 264 470 1017 409 701 Core 167 | 6 . . . . . . . . . . . . . . . 72 89 Treads 135 | 46 89 . . . . . . . . . . . . . . . . Legs . | . . . . . . . . . . . . . . . . . . Wheels . | . . . . . . . . . . . . . . . . . . Hover 514 | . . . . . . . . . . . . . . . . . 514 Flight 8220 | . 443 773 539 408 350 103 601 588 275 393 1027 534 264 470 1017 337 98 Fastest Speed 22 | 50 37 37 31 31 31 31 27 27 27 27 27 23 26 22 22 33 40 Average Speed 33 | 147 58 37 32 31 31 31 27 27 27 27 28 25 26 25 25 37 47 Slowest Speed 300 | 160 300 37 37 31 31 31 31 27 27 27 96 27 26 26 94 125 110 Overloaded Moves 1 | . . . . . . . . . . . . . . 1 . . . Propulsion Burnouts . | . . . . . . . . . . . . . . . . . . Robots Hopped 72 | . 6 10 13 1 . 1 7 9 . . 3 3 . . 16 3 . Cave-ins Triggered . | . . . . . . . . . . . . . . . . . . Exploration Rate (%) 40 | 4 81 95 59 74 66 36 52 22 52 53 29 14 8 30 20 14 21 Regions Visited 17 Branch Regions 7 Pre-discovered Areas 6 | . 1 . . . 1 . . . 1 . 3 . . . . . . Known Exits Taken 11 | . 1 1 1 . . 1 . 1 1 . 1 . 1 1 1 1 . Unknown Exits Taken 6 | 1 . . . 1 1 . 1 . . 1 . 1 . . . . . Scrap Searched 6 | . . 1 . . . . . . 2 3 . . . . . . . Spaces Dug 12 | . . 1 . . . . . . . . . 2 1 . 5 1 2 Terrain Destroyed 40 | . . 1 . . . . . . . . . 2 1 . 5 1 30 Melee 12 | . . 1 . . . . . . . . . 2 1 . 5 1 2 Projectile . | . . . . . . . . . . . . . . . . . . AOE 28 | . . . . . . . . . . . . . . . . . 28 Terrain Rammed . | . . . . . . . . . . . . . . . . . . Walls Destroyed . | . . . . . . . . . . . . . . . . . . Machines Disabled . | . . . . . . . . . . . . . . . . . . Actions | -11 -10 -10 -9 -9 -9 -8 -8 -7 -7 -7 -6 -5 -4 -4 -3 -2 -1 --------- Run | Yrd Mat Min Mat Min Exi Min Mat Fac Low Low Fac Fac Fac Ext Res Res Acc Total 10396 | 63 730 779 564 409 350 101 616 606 274 414 1662 607 301 534 1131 470 785 Wait 1146 | . 169 5 18 2 . . 1 9 . 17 615 58 29 41 96 43 43 Move 8880 | 51 520 753 512 405 349 100 586 570 274 392 1020 527 263 469 985 403 701 Hop 67 | . 5 9 13 1 . 1 7 8 . . 3 3 . . 15 2 . Pick Up 40 | 1 4 1 3 . 1 . 8 8 . . 1 3 2 . 3 . 5 Fast Attach 29 | 7 1 1 3 . . . 1 . . . . . . . 4 3 9 Attach 39 | . 2 1 3 . . . 1 3 . . 5 7 1 . 7 4 5 Detach 25 | . 4 1 . . . . . . . . 5 2 . . 8 4 1 Swap 25 | . 5 . 2 . . . 3 2 . . 6 2 4 1 . . . Drop 32 | . 2 1 1 1 . . 5 6 . . 2 3 1 1 4 1 4 Fire 24 | 3 18 . . . . . . . . . . . . . . . 3 Melee 51 | . . 3 9 . . . 4 . . 5 5 2 1 4 9 1 8 Ram 15 | . . . . . . . . . . . . . . . . 9 6 Kick . | . . . . . . . . . . . . . . . . . . Crush 1 | 1 . . . . . . . . . . . . . . . . . Escape Stasis 18 | . . . . . . . . . . . . . . 18 . . . Rewire . | . . . . . . . . . . . . . . . . . . Trap 4 | . . 4 . . . . . . . . . . . . . . . Miscellaneous . | . . . . . . . . . . . . . . . . . . Route ------- -11/Scrapyard -10/Materials (discovered 5 exits: *Mat x3 / *Min / Sub) -10/Mines (discovered 2 exits: *Mat x2) -9/Materials (discovered 3 exits: *Mat x2 / *Min) -9/Mines (discovered 3 exits: *Mat x2 / *Exi) -9/Exiles (discovered 2 exits: [*Min x2]) -8/Mines -8/Materials (discovered 3 exits: *Fac / Sto x2) -7/Factory (discovered 2 exits: *Low x2) -7/Lower Caves -7/Lower Caves -6/Factory (discovered 4 exits: *Fac x4) -5/Factory (discovered 2 exits: *Fac / Upp) -4/Factory (discovered 8 exits: Res x4 / Upp x2 / *Ext x2) -4/Extension (discovered 2 exits: *Res x2) -3/Research (discovered 3 exits: *Res x3) -2/Research (discovered 4 exits: *Acc x3 / [*Tes]) -1/Access History --------- Turn | Location | Event 3 | -11/Scrapyard | Discovered new exit (range 16) 98 | -11/Scrapyard | Entered Materials 330 | -10/Materials | Build established: Mutant 409 | -10/Materials | Discovered new exit (range 6) 531 | -10/Materials | Discovered new exit (range 15) 538 | -10/Materials | Identified exit to Mines 630 | -10/Materials | Identified exit to Subcaves 630 | -10/Materials | Identified exit to Materials 630 | -10/Materials | Learned location of 1 exit from Materials 642 | -10/Materials | Entered Mines 653 | -10/Mines | Received a Rocket Launcher from a helpful Derelict 671 | -10/Mines | Found a hidden stash of uninstalled traps 692 | -10/Mines | A weapon hastily lodged in a ceiling crevice suddenly fell to the ground 705 | -10/Mines | Learned Materials security intel 716 | -10/Mines | Assembled infested the area 723 | -10/Mines | Met a Derelict bent on vengeance 761 | -10/Mines | Learned location of 1 exit from Materials 768 | -10/Mines | Discovered exit to Materials (range 6) 949 | -10/Mines | Entered Materials 949 | -9/Materials | Evolved 2 slots: Propulsion x2 950 | -9/Materials | Identified exit to Materials 957 | -9/Materials | Identified exit to Mines 1180 | -9/Materials | Entered Mines 1194 | -9/Mines | Learned location of 1 exit from Lower Caves 1222 | -9/Mines | Discovered exit to Materials (range 8) 1249 | -9/Mines | Discovered exit to Materials (range 8) 1308 | -9/Mines | Deemed a non-threat by the Exiles lab entrance 1308 | -9/Mines | Discovered new exit (range 5) 1309 | -9/Mines | Entered Exiles 1314 | -9/Exiles | Discovered new exit (range 15) 1317 | -9/Exiles | Met 8R-AWN 1323 | -9/Exiles | Build established: Sprinter 1323 | -9/Exiles | Met EX-HEX 1331 | -9/Exiles | Met EX-BIN 1336 | -9/Exiles | Aligned with FarCom system 1336 | -9/Exiles | Given EX-Vault access code 1344 | -9/Exiles | Opened EX-Vault 1346 | -9/Exiles | Found Trap Reconfigurator 1354 | -9/Exiles | Warned to stay clear of 0b10 Research branches 1362 | -9/Exiles | Met EX-DEC 1368 | -9/Exiles | Learned location of Zion (-6) 1382 | -9/Exiles | Discovered new exit (range 11) 1419 | -9/Exiles | Left Exiles lab with Trap Reconfigurator 1419 | -9/Exiles | Entered Mines 1448 | -8/Mines | Discovered exit to Materials (range 14) 1451 | -8/Mines | Entered Materials 1451 | -8/Materials | Evolved 2 slots: Propulsion x1, Utility x1 1634 | -8/Materials | Identified exit to Storage 1637 | -8/Materials | Discovered new exit (range 10) 1646 | -8/Materials | Entered Factory 1646 | -7/Factory | Evolved 2 slots: Propulsion x1, Utility x1 1675 | -7/Factory | Identified exit to Lower Caves 1828 | -7/Factory | Entered Lower Caves 1829 | -7/Lower Caves | Identified exit to Lower Caves 1902 | -7/Lower Caves | Entered another Lower Caves area 1907 | -7/Lower Caves | Build established: Hacker-Sprinter 1913 | -7/Lower Caves | Learned Factory terminal intel 1916 | -7/Lower Caves | Discovered new exit (range 13) 2038 | -7/Lower Caves | Entered Factory 2038 | -6/Factory | Evolved 2 slots: Utility x2 2039 | -6/Factory | Loaded intel: 26 terminal locations 2089 | -6/Factory | Identified exit to DSF 2138 | -6/Factory | Identified exit to Factory 2407 | -6/Factory | Learned location of Lower Caves (-6) 2484 | -6/Factory | Learned location of 1 exit from Proximity Caves 2605 | -6/Factory | Learned location of 1 exit from Hub_04(d) 2706 | -6/Factory | Build established: Hacker-Mutant 2785 | -6/Factory | Learned location of Upper Caves (-5) 2973 | -6/Factory | Entered another Factory area 2973 | -5/Factory | Evolved 2 slots: Utility x2 2974 | -5/Factory | Identified exit to Upper Caves 3188 | -5/Factory | Discovered new exit (range 7) 3190 | -5/Factory | Entered another Factory area 3190 | -4/Factory | Evolved 2 slots: Power x1, Utility x1 3191 | -4/Factory | Identified exit to Extension 3199 | -4/Factory | Identified exit to Research 3260 | -4/Factory | Build established: Hacker-Sprinter 3284 | -4/Factory | Identified exit to Upper Caves 3300 | -4/Factory | Entered Extension 3300 | -4/Extension | Accompanied by 1 ally 3322 | -4/Extension | Spotted B-86 Titan 3490 | -4/Extension | Spotted B-86 Titan 3493 | -4/Extension | Entered Research 3493 | -3/Research | Evolved 2 slots: Propulsion x1, Utility x1 3517 | -3/Research | Identified exit to DSF 3736 | -3/Research | Identified exit to Research 3833 | -3/Research | Spotted B-90 Cyclops 3885 | -3/Research | Entered another Research area 3885 | -2/Research | Evolved 2 slots: Propulsion x1, Utility x1 3913 | -2/Research | Lost 6 parts (5n1u) 3963 | -2/Research | Identified exit to Access 3977 | -2/Research | Discovered new exit (range 5) 4061 | -2/Research | Released all parts (13) 4091 | -2/Research | Lost 3 parts (1p2n) 4105 | -2/Research | Entered Access 4105 | -1/Access | Evolved 2 slots: Weapon x2 4229 | -1/Access | Allied Derelicts emerged from ambush trap array 4342 | -1/Access | Build established: Mutant 4433 | -1/Access | Lost 4 parts (1p1u2w) 4445 | -1/Access | Energy Cycler disabled 4496 | -1/Access | Released all parts (2) 4524 | -1/Access | Spotted B-99 Colossus 4525 | -1/Access | Core integrity fell below 50% 4527 | -1/Access | Lost 5 parts (1p3n1w) 4535 | -1/Access | Core integrity fell below 20% 4542 | -1/Access | Destroyed by P-80 Master with Gamma Rifle Last Messages --------------- 04507_ System corrupted: Matter fused (-10). 04510_ Slammed into W-44 Eye. 04517_ ALERT: Security rotation in progress. 04517_ Slammed into U-05 Engineer. 04524_ Slug penetrates Wall. 04527_ Knocked back. 04527_ Penetrated by Slug. 04527_ Slug penetrates W-44 Eye. 04531_ Sealed Freight Elevator disabled. 04531_ Penetrated by Slug. 04531_ Slug penetrates Sealed Freight Elevator. 04531_ Slug penetrates C-57 Dissector. 04531_ Penetrated by Slug. 04531_ Slug penetrates Wall. 04533_ Acquired Field Propulsion Drive. 04534_ Field Propulsion Drive severed. 04534_ Penetrated by Slug. 04534_ Slug penetrates Wall. 04534_ Penetrated by Slug. 04536_ B-99 Colossus activates siege mode. Map ----- +----------------------------------------------------+ | | | | | | | | | | | | | | | | | | | | | | | | | ????????????????????????????????########?????????? | | ??????????????????????????????? #?????????? | | ????????????????????????????? #?????????? | | ?????????????????????????????" #?????????? | | ????????????????????????????"" #?????????? | | ?????????????????????????#"""""" #?????????? | | ?????????????????????????#"""""" #?????????? | | ?????????????????????????# "" #?????????? | | ?????????????????????????# "" #?????????? | | ?????????????????????????? ??????????? | | ???????????????????????????? ????????????? | | ?????????????????????????????? ??????????????? | | ?????????????????###############+################# | | ??????????????# @ c p= | | ??????????????# c %p | | ??????????????# pp | | ??????????????# """""" """"" % | | ??????????????# """""" """""" | | ??????????????#! """""" """""" | | ??????????????# """""" """""" | | ??????????????# [[[ """""" """"" | | ??????????????# [[[ | | ??????????????# [[ % | | ??????????????+ | | ??????????????# % | | ???????????????? | | ?????????????????? | | ????????????????????? | | ??????????????????????? ? w ]= | | ?????????????????????????????? ]= | | ?????????????????????????????? == | | ?????????????????????????????? | | ??????????????????????????????? | | ??????????????????????????????? | | ????????????????????????????????##############+### | | ?????????????????????????????????????????????????? | | ?????????????????????????????????????????????????? | | ?????????????????????????????????????????????????? | +----------------------------------------------------+ Best States ------------- Heat Dissipation 67 Energy Generation 38 Energy Capacity 410 Matter Stores 300 Matter Capacity 300 Sight Range 16 Terrain Scan Density 10 Jamming Range 16 Power Amplification 30 Armor Coverage 150 Resistance: EM 25 Evasion (%) 65 Recoil Reduction 2 Offensive Hacking 36 Defensive Hacking 20 Item Schematics ----------------- None Robot Schematics ------------------ None Fabricated ------------ Nothing Alien Tech Used ----------------- None Achievements -------------- Brute Force Knowing Is Half The Battle Prolific Hacker Challenges ------------ None Game ------ Seed CoolingArmorField Manual? 0 Play Time 01:48:40 Cumulative 63.5 hours Start 2025.05.01 @ 23:19:17 End 2025.05.02 @ 01:05:03 Sessions 1 Manual Loads 0 Difficulty Rogue Special Mode None Game No. 72 Rogue 72 Adventurer 0 Explorer 0 Win Type - Total 0 Types 0/0/0/0/0/0/0/0/0 Lore% 18 Gallery% 40 Achievement% 34 Wizard Run 0 Options --------- Layout 0 ASCII 0 Keyboard 1 Movement Numpad Keybinds 0 Fullscreen 1 Font 24/Terminus Map View 76x50 Zoom Use 0% Tactical HUD 1 Map Filters NONE Filters NONE Steam 1 RUN: ad7718e2-7da8-496c-8550-38e4f594b548